Cogmind - Beta 15 @@@ ROGUE MODE // 2025.07.11 @ 15:23:49 Player: BlobtheGreat Result: Self-destructed Performance ------------- Evolutions (3) 1500 Regions Visited (6) 1200 Robots Destroyed (113) 565 Value Destroyed (2861) 2861 Prototype IDs (6) 120 Alien Tech Used (0) 0 Bonus (208) 208 TOTAL SCORE: 6454 Bonus ------- High Alert Combat Kills 11 Follower Combat Kills 197 Cogmind --------- Core Integrity 487/700 Matter 150/300 Energy 290/290 System Corruption 3% Temperature Cool (0) Movement Rolling (115) Ox1 Location -7/Factory Parts ------- > --- POWER (1) -------- Improved Deuterium Engine > --- PROPULSION (5) --- Armored Treads Compact Wheel Compact Wheel > --- UTILITY (5) ------ Improved Cooling System High-capacity Storage Unit Improved Salvage Targeting Computer Hacking Suite > --- WEAPON (2) ------- Heavy EM Pulse Gun Flak Gun > --- INVENTORY (20) --- Reinforced Ion Engine Nuclear Core Airjet Large Storage Unit Advanced Visual Processing Unit Experimental Sensor Array Weapon Cycler Improved Light Armor Plating Improved Trap Extractor (0/6) Heavy EM Pulse Gun Heavy EM Pulse Gun Plasma Cannon Gauss Rifle Flak Gun Flak Gun Gauss Cannon Rocket Launcher Missile Launcher Katana Axe Peak State ------------ > --- POWER ------------ Light Deuterium Engine > --- PROPULSION ------- Armored Treads Advanced Treads Advanced Treads Compact Wheel Compact Wheel > --- UTILITY ---------- Improved Cooling System High-capacity Storage Unit Improved Salvage Targeting Computer Weapon Cycler Hardened Medium Armor Plating > --- WEAPON ----------- Enhanced Autogun Flak Gun > --- INVENTORY -------- Reinforced Ion Engine Nuclear Core Airjet Large Storage Unit Advanced Visual Processing Unit Experimental Sensor Array Hacking Suite Improved Trap Extractor Heavy EM Pulse Gun Heavy EM Pulse Gun Heavy EM Pulse Gun Heavy EM Pulse Gun Ion Cannon Flak Gun Flak Gun Gauss Cannon Rocket Launcher Missile Launcher Katana Axe [Rating: 44] Favorites ----------- Power Reinforced Ion Engine Engine Reinforced Ion Engine Power Core Light Nuclear Core Propulsion Aluminum Leg Treads Light Treads Leg Aluminum Leg Wheel Compact Wheel Utility High-capacity Storage Unit Device Seismic Detector Storage High-capacity Storage Unit Processor Improved Salvage Targeting Computer Hackware Hacking Suite Protection Hardened Medium Armor Plating Weapon Heavy Assault Rifle Energy Gun Heavy EM Pulse Gun Energy Cannon Ion Cannon Ballistic Gun Heavy Assault Rifle Launcher Grenade Launcher Slashing Weapon Katana Build | -11 -10 -10 -10 -9 -8 -7 ------- Run | Yrd Mat Min Exi Min Mat Fac Slots Evolved 6 | . . . . . 4 2 Power . | . . . . . . . Propulsion 3 | . . . . . 2 1 Utility 3 | . . . . . 2 1 Weapon . | . . . . . . . Parts Attached 63 | 7 7 4 . 5 25 15 Power 5 | 1 1 . . . 2 1 Engine 4 | 1 1 . . . 1 1 Core 1 | . . . . . 1 . Reactor . | . . . . . . . Propulsion 24 | 2 1 2 . 3 11 5 Treads 13 | . . . . 2 11 . Leg 6 | 2 1 2 . 1 . . Wheel 5 | . . . . . . 5 Hover . | . . . . . . . Flight . | . . . . . . . Utility 16 | 2 3 1 . 1 6 3 Device 7 | 1 1 . . . 4 1 Storage 2 | 1 1 . . . . . Processor 1 | . . . . . 1 . Hackware 1 | . . . . . . 1 Protection 5 | . 1 1 . 1 1 1 Artifact . | . . . . . . . Weapon 18 | 2 2 1 . 1 6 6 Energy Gun 4 | . . . . . 1 3 Energy Cannon 1 | . . . . . 1 . Ballistic Gun 10 | 2 1 1 . 1 3 2 Ballistic Cannon . | . . . . . . . Launcher 2 | . 1 . . . . 1 Special Weapon . | . . . . . . . Impact Weapon . | . . . . . . . Slashing Weapon 1 | . . . . . 1 . Piercing Weapon . | . . . . . . . Special Melee Weapon . | . . . . . . . Unidentified Prototypes 2 | . . . . . 1 1 Corrupted Parts 2 | . . . . . 1 1 System Corruption 3 | . . . . . 1 2 Parts Lost 18 | . 1 . . 3 6 8 Power 2 | . . . . . 1 1 Propulsion 8 | . . . . 1 2 5 Utility 6 | . 1 . . 1 2 2 Weapon 2 | . . . . 1 1 . Highest Loss Streak 4 | . 1 . . 3 4 3 To Critical Strikes 1 | . . . . 1 . . Average Backups 18 | 3 15 20 20 18 18 19 Power 2 | . 1 2 2 2 2 2 Propulsion 3 | 2 6 4 4 3 2 1 Utility 5 | . 3 5 6 5 5 5 Weapon 7 | . 3 8 8 7 8 11 Tool/Special . | . . . . . . . Unused Backups 38 | . 10 5 . . 8 15 Power 5 | . 2 . . . 1 2 Propulsion 7 | . 3 2 . . 1 1 Utility 8 | . 1 1 . . 1 5 Weapon 18 | . 4 2 . . 5 7 Tool/Special . | . . . . . . . Average Slot Usage (%) 97 | . 91 100 76 98 98 95 Engine 12 | . 14 14 14 14 7 6 Treads 10 | . . . . 17 35 20 Leg 18 | . 28 28 28 10 . . Wheel 1 | . . . . . . 14 Device 9 | . 3 13 14 5 8 9 Storage 12 | . 14 14 14 14 9 7 Processor 1 | . . . . . 8 7 Protection 4 | . 2 . . 8 8 6 Ballistic Gun 23 | . 26 28 5 26 15 14 Peak Build Rating 44 | 7 12 16 16 19 40 44 Average Rating 18 | 5 8 15 12 16 29 42 On Entrance 15 | . 7 12 16 16 17 40 Naked Turns . | . . . . . . . Heaviest Build 68 | 13 58 59 57 64 65 68 Greatest Support 87 | 20 20 25 25 40 87 87 Greatest Overweight (x) 4 | 1 2 2 2 4 1 4 Average Overweight (x) 1 | . 1 2 2 1 . 1 Largest Inventory Capacity 20 | 8 20 20 20 20 20 20 Average Capacity 19 | 7 19 20 20 20 20 20 Most Carried 20 | 7 20 20 20 20 20 20 Average Carried 18 | 4 15 19 20 18 18 19 Final Capacity 20 | 8 20 20 20 20 20 20 Final Carried 20 | 7 20 20 20 17 20 20 Class Distribution -------------------- 93% | Mutant 6% | Scavenger-Mutant Dominant Class ---------------- Mutant | -10/Materials Mutant | -10/Mines Mutant | -10/Exiles Mutant | -9/Mines Mutant | -8/Materials Mutant | -7/Factory Resources | -11 -10 -10 -10 -9 -8 -7 ----------- Run | Yrd Mat Min Exi Min Mat Fac Matter Collected 2915 | 306 418 392 . 312 998 489 Remotely . | . . . . . . . Salvage Created 4518 | 125 597 1113 . 175 1744 764 Parts 249 | 6 41 25 . 13 126 38 Haulers Intercepted 4 | . 2 . . . 2 . Recyclers Shooed 3 | . 1 1 . . 1 . Parts Field Recycled . | . . . . . . . Retrieved Matter . | . . . . . . . Parts Self-Destructed . | . . . . . . . Prevented . | . . . . . . . Kills | -11 -10 -10 -10 -9 -8 -7 ------- Run | Yrd Mat Min Exi Min Mat Fac Combat Hostiles Destroyed 72 | . 12 3 . 5 35 17 Guns 65 | . 12 3 . 5 35 10 AOE 6 | . . . . . . 6 Classes Destroyed 15 | 2 5 1 . 2 3 2 Worker 6 | . . . . 1 3 2 Builder 1 | . . . . . 1 . Tunneler 3 | 2 . . . . 1 . Hauler 4 | . 2 . . . 2 . Recycler 20 | 1 1 13 . . 3 2 Operator 3 | . 1 . . . 2 . Watcher 4 | . 2 . . . 1 1 Swarmer 20 | . 5 . . . 11 4 Grunt 35 | . 7 3 . 4 14 7 Brawler 3 | . . . . 1 . 2 Protector 1 | . . . . . . 1 Sentry 11 | . . . . . 9 2 Hunter 1 | . . . . . 1 . Programmer 1 | . . . . . . 1 Assembled 1 | . . 1 . . . . Best Kill Streak 9 | 3 3 3 . 1 9 6 Combat Bots Only 9 | . 3 2 . 1 9 5 Max Kills in Single Turn 3 | 1 1 1 . 1 3 2 Gunslinging 1 | . . . . . 1 . Exploded 2 | . . . . . . 2 Melee . | . . . . . . . Uniques/NPCs Destroyed . | . . . . . . . Combat | -11 -10 -10 -10 -9 -8 -7 -------- Run | Yrd Mat Min Exi Min Mat Fac Hostile Shots Fired 496 | . 57 10 . 43 165 221 Missed 161 | . 19 1 . 12 47 82 Hits 335 | . 38 9 . 31 118 139 Melee 11 | . . . . 7 . 4 Projectile 324 | . 38 9 . 24 118 135 Critical Strikes 8 | . . . . 2 4 2 Damage Taken 4353 | . 431 119 . 432 1858 1513 Core 497 | . 55 32 . 24 173 213 Absorbed by Shields . | . . . . . . . Core Remaining (%) 74 | 100 . . . 55 68 . Volleys Fired 301 | 6 51 41 . 26 126 51 Largest 2 | 2 2 2 . 2 2 2 Hottest 85 | 40 43 46 . 48 85 56 Shots Fired 585 | 12 102 89 . 54 240 88 Gun 558 | 12 101 89 . 54 220 82 Cannon 20 | . . . . . 20 . Launcher 7 | . 1 . . . . 6 Special . | . . . . . . . Kinetic 525 | 12 101 89 . 54 196 73 Thermal 20 | . . . . . 20 . Explosive 7 | . 1 . . . . 6 Electromagnetic 33 | . . . . . 24 9 Robot Hit Streak 24 | 3 8 6 . 7 24 8 Robot Miss Streak 6 | 2 4 5 . 3 5 6 Penetration Max . | . . . . . . . Secondary Targets 3 | . . . . . 3 . Max Gunslinging Chain 1 | . . . . . 1 . Shots Hit Robots 376 | 8 59 43 . 33 161 72 Core Hits 232 | 4 26 24 . 9 87 82 Critical Kills 4 | 1 1 1 . . 1 . Critical Parts Destroyed 2 | . . . . 1 1 . Critical Strikes 10 | 1 1 1 . 1 5 1 Destroy 6 | 1 1 1 . 1 2 . Corrupt 4 | . . . . . 3 1 Melee Attacks . | . . . . . . . Impact . | . . . . . . . Slashing . | . . . . . . . Piercing . | . . . . . . . Sneak Attacks . | . . . . . . . Combat Hostiles . | . . . . . . . Follow-up Attacks . | . . . . . . . Damage Inflicted 7300 | 96 803 673 . 605 3295 1828 Guns 6219 | 96 803 664 . 584 2834 1238 Cannons 145 | . . . . . 145 . Explosions 794 | . . . . . 204 590 Melee . | . . . . . . . Ramming 142 | . . 9 . 21 112 . Kinetic 5860 | 96 803 664 . 584 2588 1125 Thermal 237 | . . . . . 237 . Explosive 702 | . . . . . 112 590 Electromagnetic 359 | . . . . . 246 113 Impact . | . . . . . . . Slashing . | . . . . . . . Piercing . | . . . . . . . Highest Corruption 7 | . 1 1 1 7 1 3 Average Corruption 1 | . 1 1 1 4 1 1 Corruption Purged . | . . . . . . . Corruption Blocked . | . . . . . . . Effects 111 | . 11 42 2 50 . 6 Message Errors 22 | . 1 4 1 14 . 2 Matter Fused 28 | . 3 12 . 10 . 3 Heat Flow Errors 14 | . 1 7 . 6 . . Energy Discharges 12 | . 1 4 . 7 . . Parts Fused 2 | . . . 1 1 . . Data Loss (minor) 13 | . 3 4 . 6 . . Data Loss (major) 6 | . . 2 . 4 . . Misfires 12 | . 1 8 . 2 . 1 Alerts 1 | . 1 . . . . . Weapon Failures 1 | . . 1 . . . . Overload Shots . | . . . . . . . Overflow Damage 37 | . . . . . 37 . Projectiles . | . . . . . . . Explosions 37 | . . . . . 37 . Melee . | . . . . . . . Knockbacks 2 | . . . . . 2 . Impact 1 | . . . . . 1 . Kinetic . | . . . . . . . Secondary 1 | . . . . . 1 . Self-Inflicted Damage 100 | . 12 . . . 88 . Shots 2 | . 1 . . . 1 . Rammed 8 | . . . . 2 6 . Targets Rammed 15 | . . 4 . 4 7 . Kicked 6 | . . 4 . 2 . . Crushed 1 | . . . . . 1 . Highest Temperature 270 | . 172 270 . 254 166 . Average Temperature 71 | . 47 107 . 68 36 . Received Heat Transfer 1569 | . 168 36 . 144 720 501 Effects 1 | . . . . 1 . . Energy Bleed 1 | . . . . 1 . . Siege Activations . | . . . . . . . Martial Activations . | . . . . . . . Shielding Activations . | . . . . . . . Robots Disrupted . | . . . . . . . Combat Hostiles . | . . . . . . . Robots Corrupted 1 | . . . . . . 1 Combat Hostiles 1 | . . . . . . 1 Parts Fried . | . . . . . . . Impact Corruptions . | . . . . . . . Robots Melted . | . . . . . . . Combat Hostiles . | . . . . . . . Parts Melted . | . . . . . . . Heat Transferred 272 | . . . . . 272 . Parts Sabotaged . | . . . . . . . Parts Stolen . | . . . . . . . Parts Stripped . | . . . . . . . Power Chain Reactions 1 | . . . . . 1 . Alert | -11 -10 -10 -10 -9 -8 -7 ------- Run | Yrd Mat Min Exi Min Mat Fac Maximum Alert Level 2 | . . . . . 2 1 Low Security (%) 91 | 100 100 100 . 100 49 95 Level 1 8 | . . . . . 47 4 Level 2 . | . . . . . 3 . Level 3 . | . . . . . . . Level 4 . | . . . . . . . Level 5 . | . . . . . . . High Security . | . . . . . . . Max Security . | . . . . . . . Peak Influence 415 | 15 99 104 . 74 415 221 Initial 186 | . 3 28 . . 2 186 Average 55 | 2 18 29 . 8 194 75 Influence Increases 2488 | 15 415 262 . 273 1015 508 Destroy 0b10 Robot/C 1580 | . 240 140 . 180 700 320 Destroy 0b10 Robot/NC 210 | 15 30 65 . 5 65 30 Destroy Leader 356 | . 48 20 . 40 176 72 Allied During Kill 27 | . . 22 . 5 . . Successful Hack 60 | . 30 . . 13 17 . Disable Machine 45 | . . 15 . 15 15 . Destroy Structure 90 | . 7 . . . 42 41 Lose Combat Pursuer 120 | . 60 . . 15 . 45 Influence Decreases 2407 | 10 347 275 60 265 612 838 Entered New Map 338 | . 2 45 60 . 6 225 Time Decay 1760 | 10 343 230 . 245 546 386 Lost Part 139 | . 2 . . . 60 77 Lost Ally 20 | . . . . 20 . . Purge Threat 150 | . . . . . . 150 Squads Dispatched 12 | . 2 . . 1 4 5 Investigation 6 | . 1 . . 1 2 2 Extermination 1 | . . . . . . 1 Reinforcement 3 | . 1 . . . 2 . Assault 2 | . . . . . . 2 Garrison . | . . . . . . . Intercept . | . . . . . . . Searches Triggered . | . . . . . . . Construction Impeded . | . . . . . . . Haulers Reinforced . | . . . . . . . Active Scanning Responses . | . . . . . . . Cargo Convoy Interrupts . | . . . . . . . Stealth | -11 -10 -10 -10 -9 -8 -7 --------- Run | Yrd Mat Min Exi Min Mat Fac Distress Signals 6 | . 2 . . . 3 1 Communications Jammed . | . . . . . . . Distress Signals . | . . . . . . . Times Spotted 124 | . 32 9 . 10 46 27 Peak Tracking Total 7 | . 5 2 . 3 4 7 Tactical Retreats 7 | . 2 1 . 1 . 3 Traps | -11 -10 -10 -10 -9 -8 -7 ------- Run | Yrd Mat Min Exi Min Mat Fac Traps Triggered 7 | . 2 . . . 3 2 Indirectly . | . . . . . . . Trap Hack Attempts . | . . . . . . . Triggered . | . . . . . . . Disarmed 1 | . . . . . 1 . Reprogrammed . | . . . . . . . Reused . | . . . . . . . Traps Extracted . | . . . . . . . Installed . | . . . . . . . Triggered . | . . . . . . . Machines | -11 -10 -10 -10 -9 -8 -7 ---------- Run | Yrd Mat Min Exi Min Mat Fac Machines Disabled 3 | . . 1 . 1 1 . Max in Single Turn 1 | . . 1 . 1 1 . Garrison Access 2 | . . . . . 1 1 Machines Repaired . | . . . . . . . Machines Dismantled . | . . . . . . . Machines Sabotaged . | . . . . . . . Overloaded Fab Kills . | . . . . . . . Hacking | -11 -10 -10 -10 -9 -8 -7 --------- Run | Yrd Mat Min Exi Min Mat Fac Machines Accessed 25 | . 7 1 1 1 9 6 Terminals 21 | . 7 . . 1 8 5 Fabricators . | . . . . . . . Repair Stations . | . . . . . . . Recycling Units 1 | . . . . . . 1 Scanalyzers . | . . . . . . . Garrison Access 1 | . . . . . 1 . Total Hacks 74 | . 28 1 1 3 27 14 Successful 23 | . 8 1 1 2 8 3 Failed 50 | . 19 . . 1 19 11 Catastrophic 9 | . . . . 1 2 6 Database Lockouts 1 | . 1 . . . . . Manual 46 | . 24 . . 2 10 10 Terminals 65 | . 28 . . 3 22 12 Fabricators . | . . . . . . . Repair Stations . | . . . . . . . Recycling Units 2 | . . . . . . 2 Scanalyzers . | . . . . . . . Garrison Access 5 | . . . . . 5 . Terminal Hacks 16 | . 2 1 1 2 7 3 Record 1 | . . . 1 . . . Robot Analysis 2 | . 1 . . . 1 . Prototype ID Bank 2 | . . . . . 2 . Open Door 1 | . . 1 . . . . Branch Access Points 1 | . . . . 1 . . Alert Level 1 | . . . . . 1 . Unreport Threat 1 | . . . . . . 1 Locate Traps 2 | . 1 . . . 1 . Disarm Traps 1 | . . . . . 1 . Hauler Manifests 2 | . . . . . 1 1 Zone Layout 2 | . . . . 1 . 1 Fabricator Hacks . | . . . . . . . Repair Station Hacks . | . . . . . . . Recycling Unit Hacks . | . . . . . . . Scanalyzer . | . . . . . . . Garrison Access Hacks 1 | . . . . . 1 . Seal Access 1 | . . . . . 1 . Unauthorized Hacks 6 | . 6 . . . . . Terminals 6 | . 6 . . . . . Botnet 1 | . 1 . . . . . Skim 5 | . 5 . . . . . Fabricators . | . . . . . . . Repair Stations . | . . . . . . . Recycling Units . | . . . . . . . Scanalyzers . | . . . . . . . Garrison Access . | . . . . . . . Data Cores Recovered 1 | . 1 . . . . . Used . | . . . . . . . Hacking Detections 23 | . 7 . . 1 9 6 Full Trace Events 3 | . . . . 1 1 1 Feedback Events . | . . . . . . . Feedback Blocked . | . . . . . . . Robot Schematics Acquired . | . . . . . . . Robots Built . | . . . . . . . Authchips . | . . . . . . . Time . | . . . . . . . Total Robot Build Rating . | . . . . . . . Part Schematics Acquired . | . . . . . . . Parts Built . | . . . . . . . Authchips . | . . . . . . . Time . | . . . . . . . Total Part Build Rating . | . . . . . . . Parts Repaired . | . . . . . . . Time . | . . . . . . . Parts Recycled . | . . . . . . . Recycled Matter . | . . . . . . . Retrieved Matter . | . . . . . . . Retrieved Components . | . . . . . . . Parts Scanalyzed . | . . . . . . . Part Schematics Acquired . | . . . . . . . Parts Damaged . | . . . . . . . Bothacking | -11 -10 -10 -10 -9 -8 -7 ------------ Run | Yrd Mat Min Exi Min Mat Fac Used RIF Installer . | . . . . . . . Robots Hacked . | . . . . . . . Non-combat . | . . . . . . . Combat . | . . . . . . . Robot Hacks Applied . | . . . . . . . Relay Couplers Released 2 | . . . . . . 2 Machine Destruction 2 | . . . . . . 2 Fabnet Peak Effective % . | . . . . . . . Robots Rewired . | . . . . . . . Allies Hacked . | . . . . . . . Hacks Repelled . | . . . . . . . Allies | -11 -10 -10 -10 -9 -8 -7 -------- Run | Yrd Mat Min Exi Min Mat Fac Total Allies 4 | . . 4 . . . . Largest Group 3 | . . 3 2 2 . . Highest-Rated Group 40 | . . 40 32 32 . . Highest-Rated Ally 31 | . . 31 16 16 . . Total Orders . | . . . . . . . Ally Attacks 46 | . . 31 . 15 . . Total Damage 541 | . . 326 . 215 . . Kills 10 | . . 6 . 4 . . Allies Corrupted . | . . . . . . . Allies Melted . | . . . . . . . Intel | -11 -10 -10 -10 -9 -8 -7 ------- Run | Yrd Mat Min Exi Min Mat Fac Active Infowar (turns) 7019 | 19 487 5213 452 848 . . Seismic 7019 | 19 487 5213 452 848 . . Robot Analysis Total 2 | . 1 . . . 1 . Derelict Logs Recovered 3 | . . 1 . 2 . . Drone Launches . | . . . . . . . Drone Recoveries . | . . . . . . . Exploration | -11 -10 -10 -10 -9 -8 -7 ------------- Run | Yrd Mat Min Exi Min Mat Fac Turns Passed 13591 | 97 2008 5428 452 2355 2208 1043 Spaces Moved 5421 | 53 721 1720 173 909 1113 732 Core 4 | 4 . . . . . . Treads 1732 | . . . . 597 1113 22 Legs 2975 | 49 721 1720 173 312 . . Wheels 710 | . . . . . . 710 Hover . | . . . . . . . Flight . | . . . . . . . Fastest Speed 50 | 50 120 260 260 240 150 101 Average Speed 214 | 115 248 260 260 247 157 119 Slowest Speed 400 | 120 260 260 260 400 232 160 Overloaded Moves . | . . . . . . . Propulsion Burnouts . | . . . . . . . Robots Hopped . | . . . . . . . Potential Cave-ins . | . . . . . . . Cave-ins Triggered . | . . . . . . . Exploration Rate (%) 63 | 6 91 99 40 95 91 23 Regions Visited 6 Branch Regions 3 Pre-discovered Areas 3 | . 1 . 1 1 . . Known Exits Taken 2 | . 1 . . . 1 . Unknown Exits Taken 4 | 1 . 1 1 1 . . Scrap Searched 5 | . . 3 . 2 . . Spaces Dug 10 | . 6 . . . 4 . Terrain Destroyed 98 | . 6 . . . 39 53 Melee . | . . . . . . . Projectile 9 | . . . . . 9 . AOE 89 | . 6 . . . 30 53 Terrain Rammed . | . . . . . . . Walls Destroyed . | . . . . . . . Machines Disabled . | . . . . . . . Actions | -11 -10 -10 -10 -9 -8 -7 --------- Run | Yrd Mat Min Exi Min Mat Fac Total 6830 | 73 849 2596 176 962 1349 825 Wait 891 | . 26 812 . 13 27 13 Move 5415 | 52 720 1719 172 908 1112 732 Hop . | . . . . . . . Pick Up 63 | 8 27 6 . 1 17 4 Fast Attach 28 | 6 . . 2 1 10 9 Attach 15 | 1 2 1 . 4 6 1 Detach 4 | . 1 . . 2 1 . Swap 38 | . 6 4 . 1 19 8 Drop 60 | . 16 9 2 2 24 7 Fire 301 | 6 51 41 . 26 126 51 Melee . | . . . . . . . Ram . | . . . . . . . Kick 6 | . . 4 . 2 . . Crush 9 | . . . . 2 7 . Escape Stasis . | . . . . . . . Rewire . | . . . . . . . Trap . | . . . . . . . Miscellaneous . | . . . . . . . Route ------- -11/Scrapyard -10/Materials (discovered 6 exits: *Mat x3 / *Min x2 / Sub) -10/Mines (discovered 4 exits: *Mat x2 / *Exi / *Sub) -10/Exiles -9/Mines (discovered 2 exits: *Mat x2) -8/Materials (discovered 3 exits: *Fac x3) -7/Factory (discovered 1 exit: Low) History --------- Turn | Location | Event 4 | -11/Scrapyard | Discovered new exit (range 16) 98 | -11/Scrapyard | Entered Materials 200 | -10/Materials | Discovered new exit (range 8) 328 | -10/Materials | Build established: Mutant 516 | -10/Materials | Discovered new exit (range 7) 981 | -10/Materials | Discovered new exit (range 13) 1240 | -10/Materials | Discovered new exit (range 5) 1508 | -10/Materials | Central database locked down 1520 | -10/Materials | Learned 2 Mines zone layouts 1576 | -10/Materials | Identified exit to Subcaves 1622 | -10/Materials | Identified exit to Materials 1622 | -10/Materials | Learned location of 1 exit from Materials 1658 | -10/Materials | Identified exit to Mines 1710 | -10/Materials | Learned Storage emergency access door positions 1726 | -10/Materials | Learned 4 Subcaves zone layouts 1750 | -10/Materials | Learned location of 2 exits from Subcaves 2106 | -10/Materials | Entered Mines 2176 | -10/Mines | Received a Rocket Launcher from a helpful Derelict 2276 | -10/Mines | Met a Derelict who couldn't figure out how to use a Trap Extractor 2647 | -10/Mines | Received a Mining Laser from a helpful Derelict 2783 | -10/Mines | Assembled infested the area 2788 | -10/Mines | Assisted by a Guerilla fighting off Assembled 3268 | -10/Mines | Learned Materials non-interactive machine intel 3528 | -10/Mines | Found a damaged Exp. Sensor Array with a note attached 3539 | -10/Mines | Found Prototype Device 3587 | -10/Mines | Assisted by bots powering up and referring to "LRC-V3" 4054 | -10/Mines | Deemed a non-threat by the Exiles lab entrance 4054 | -10/Mines | Discovered new exit (range 5) 4304 | -10/Mines | Discovered exit to Subcaves (range 6) 7534 | -10/Mines | Entered Exiles 7534 | -10/Exiles | Accompanied by 2 allies 7611 | -10/Exiles | Met 8R-AWN 7642 | -10/Exiles | Met EX-HEX 7751 | -10/Exiles | Met EX-DEC 7762 | -10/Exiles | Learned location of Zion (-6) 7949 | -10/Exiles | Discovered new exit (range 15) 7986 | -10/Exiles | Entered Mines 7986 | -9/Mines | Accompanied by 2 allies 8050 | -9/Mines | Discovered new exit (range 12) 8667 | -9/Mines | Learned Materials terminal intel 8872 | -9/Mines | Lost 3 parts (1n1u1w) 9222 | -9/Mines | Learned location of Storage (-9) 9658 | -9/Mines | Discovered new exit (range 12) 10341 | -9/Mines | Entered Materials 10341 | -8/Materials | Evolved 4 slots: Propulsion x2, Utility x2 10342 | -8/Materials | Identified exit to Factory 10343 | -8/Materials | Loaded intel: 34 non-interactive machine locations 10344 | -8/Materials | Loaded intel: 9 terminal locations 10852 | -8/Materials | Destroyed 9 combat bots 11010 | -8/Materials | Build established: Scavenger-Mutant 11354 | -8/Materials | Discovered exit to Factory (range 3) 11820 | -8/Materials | Build established: Mutant 12001 | -8/Materials | Lost 4 parts (1n2u1w) 12481 | -8/Materials | Discovered exit to Factory (range 4) 12549 | -8/Materials | Entered Factory 12549 | -7/Factory | Evolved 2 slots: Propulsion x1, Utility x1 12550 | -7/Factory | Identified exit to Lower Caves 13552 | -7/Factory | Lost 3 parts (2n1u) 13592 | -7/Factory | Self-destructed Last Messages --------------- 13539_ U-05 Engineer lays Concrete. 13540_ U-05 Engineer builds a Wall. 13540_ U-05 Engineer lays Concrete. 13544_ Acquired Corrupted Com. Wheel. 13544_ Integrated Corrupted Com. Wheel (+2). 13544_ R-06 Scavenger collects Hvy. Laser. 13544_ U-05 Engineer lays Concrete. 13544_ U-05 Engineer builds a Wall. 13548_ R-06 Scavenger collects Corrupted Imp. Deuterium Engine. 13549_ U-05 Engineer builds a Wall. 13550_ U-05 Engineer lays Concrete. 13551_ U-05 Engineer builds a Wall. 13552_ R-06 Scavenger collects Sml. Storage Unit. 13555_ U-05 Engineer builds a Wall. 13569_ G-47 Trooper suffers critical hit (Burn). 13574_ Adv. Treads destroyed. 13583_ K-01 Serf cleans the Subcomponent Replicator. Map ----- +----------------------------------------------------+ | ??????????????????????????????# """""""# "" # | | ??????????????????????????????# # # | | ??????????????????????????????####+############### | | ?????????????????????????????????# # # #???????? | | ????############################## # # #???????? | | ???? #???????? | | ??? ######### | | ??? | | ?? ## ######## | | ??? % %# # | | ??????????### #################### # | | ????????????# T#???????????# # | | ????????????# #???????????##### %# # | | ????????????# ##????????????????# ## # | | ????????????# #??????????????????# #? # | | ????????????# ###############????? #?? # | | ????????????# gg #????? #??? # | | ????????????#+#+########g #??????#???? # | | ???????????????????????# #????????????##### | | ???????????????????????# ""k #????????????????? | | ???????????????????????# "" #????????????????? | | ???????????????????????# """ #????????????????? | | ???????????????????????# l """ #????????????????? | | ???????????????????????# """ #????????????????? | | ???????????????????????# +????????????##### | | ???????????????????????# @ "" #???????????? | | ???????????????????????# "" #???????????? """ | | ???????????????????????# """ #???????????? """ | | ???????????????????????# """ #???????????? """ | | ???????????????????????# """ #???????????? | | ???????????????????????# #???????????? """ | | ???????????????????????# ?????????????? """ | | ???????????????????????# ?????????????? """ | | ???????????????????????# ????????????? | | ???????????????????????########?????????????? | | ????????????????????????????????????????????? | | ????????????????????????????????????????????? | | ?????????????????????????????????????????????????? | | ?????????????????????????????????????????????????? | | ?????????????????????????????????????????????????? | | ?????????????????????????????????????????????????? | | ?????????????????????????????????????????????????? | | ?????????????????????????????????????????????????? | | ?????????????????????????????????????????????????? | | ?????????????????????????????????????????????????? | | ?????????????????????????????????????????????????? | | ?????????????????????????????????????????????????? | | ?????????????????????????????????????????????????? | | ?????????????????????????????????????????????????? | | ?????????????????????????????????????????????????? | +----------------------------------------------------+ Best States ------------- Heat Dissipation 61 Energy Generation 16 Energy Capacity 290 Matter Stores 300 Matter Capacity 300 Sight Range 16 Terrain Scan Density 10 Armor Coverage 225 Weapon Cycling 15 Evasion (%) 55 Recoil Reduction 4 Salvage Targeting 2 Offensive Hacking 10 Item Schematics ----------------- None Robot Schematics ------------------ None Fabricated ------------ Nothing Repaired ---------- Nothing Alien Tech Used ----------------- None Achievements -------------- None Challenges ------------ None Game ------ Seed FluxDirectedCloak Manual? 0 Play Time 00:52:34 Cumulative 75.4 hours Start 2025.07.11 @ 14:36:01 End 2025.07.11 @ 15:23:49 Sessions 1 Manual Loads 0 Difficulty Rogue Special Mode None Game No. 69 Rogue 69 Adventurer 0 Explorer 0 Win Type - Total 1 Types 1/0/0/0/0/0/0/0/0/0 Lore% 42 Gallery% 43 Achievement% 44 Wizard Run 0 Options --------- Layout 1 ASCII 0 Keyboard 1 Movement Arrows Keybinds 0 Fullscreen 1 Font 24/Smallcaps Map View 50x40 Zoom Use 0% Tactical HUD 1 Map Filters NONE Filters NONE Steam 1 RUN: 4bc8e139-cc43-4e63-8524-11a8106c9d9b